[Event "*** Titled Tuesday Blitz"]
[Site "Chess.com"]
[Date "2021.02.09"]
[Round "10"]
[White "korkmaz16"]
[Black "frazier69"]
[Result "0-1"]
[WhiteElo "2409"]
[BlackElo "2519"]
[TimeControl "180+1"]
[EndTime "11:56:17 PST"]
[Termination "frazier69 won on time"]

1. e4 {[%clk 0:03:00.9]} 1... c5 {[%clk 0:02:59.1]} 2. Nc3 {[%clk 0:02:59.2]}
2... Nc6 {[%clk 0:02:58.2]} 3. f4 {[%clk 0:02:59.4]} 3... g6 {[%clk 0:02:57.1]}
4. Nf3 {[%clk 0:02:59.9]} 4... Bg7 {[%clk 0:02:56.2]} 5. Bb5 {[%clk 0:03:00.4]}
5... Nd4 {[%clk 0:02:53.3]} 6. O-O {[%clk 0:02:59.9]} 6... a6 {[%clk 0:02:45.9]}
7. Bd3 {[%clk 0:02:59.2]} 7... d6 {[%clk 0:02:43.9]} 8. Nxd4 {[%clk 0:02:57.3]}
8... cxd4 {[%clk 0:02:42.8]} 9. Ne2 {[%clk 0:02:57.3]} 9... Nf6 {[%clk
0:02:37.3]} 10. b3 {[%clk 0:02:42.4]} 10... Nd7 {[%clk 0:02:36.8]} 11. Bb2
{[%clk 0:02:34.9]} 11... Nc5 {[%clk 0:02:36.5]} 12. Qe1 {[%clk 0:02:14.9]} 12...
e5 {[%clk 0:02:06.5]} 13. fxe5 {[%clk 0:02:07.8]} 13... Nxd3 {[%clk 0:02:02.6]}
14. cxd3 {[%clk 0:02:07.2]} 14... dxe5 {[%clk 0:02:03.1]} 15. Ba3 {[%clk
0:02:05]} 15... Be6 {[%clk 0:01:52.1]} 16. Qc1 {[%clk 0:02:03.8]} 16... Qa5
{[%clk 0:01:40.8]} 17. Qb2 {[%clk 0:02:03.3]} 17... Bf8 {[%clk 0:01:36.7]} 18.
Bxf8 {[%clk 0:02:02.2]} 18... Kxf8 {[%clk 0:01:37.6]} 19. Nxd4 {[%clk
0:01:58.3]} 19... exd4 {[%clk 0:01:34.9]} 20. Qxd4 {[%clk 0:01:58.4]} 20... Kg8
{[%clk 0:01:32.3]} 21. Rac1 {[%clk 0:01:57.2]} 21... h5 {[%clk 0:01:26.7]} 22.
Rc5 {[%clk 0:01:52]} 22... Qd8 {[%clk 0:01:25]} 23. Qe5 {[%clk 0:01:49.7]} 23...
Rc8 {[%clk 0:01:17.1]} 24. Rxc8 {[%clk 0:01:36.5]} 24... Qxc8 {[%clk 0:01:18]}
25. d4 {[%clk 0:01:36.7]} 25... h4 {[%clk 0:00:34.1]} 26. d5 {[%clk 0:01:31.8]}
26... Bd7 {[%clk 0:00:32.3]} 27. Qe7 {[%clk 0:01:23.2]} 27... Qe8 {[%clk
0:00:30.8]} 28. Qd6 {[%clk 0:01:19]} 28... h3 {[%clk 0:00:27]} 29. Rf2 {[%clk
0:01:03.2]} 29... hxg2 {[%clk 0:00:22.9]} 30. e5 {[%clk 0:01:02.6]} 30... Bf5
{[%clk 0:00:19.5]} 31. d4 {[%clk 0:01:00.4]} 31... Qd7 {[%clk 0:00:18.1]} 32.
Qc5 {[%clk 0:00:55.8]} 32... Kg7 {[%clk 0:00:17.3]} 33. Rxg2 {[%clk 0:00:54.6]}
33... Rh4 {[%clk 0:00:16.1]} 34. d6 {[%clk 0:00:49.4]} 34... Be4 {[%clk
0:00:15.3]} 35. Rg3 {[%clk 0:00:48.7]} 35... Rg4 {[%clk 0:00:14.8]} 36. Qc3
{[%clk 0:00:43.1]} 36... Qf5 {[%clk 0:00:13.4]} 37. d5 {[%clk 0:00:38.5]} 37...
Rxg3+ {[%clk 0:00:13.4]} 38. hxg3 {[%clk 0:00:38.6]} 38... Kh7 {[%clk
0:00:12.4]} 39. e6 {[%clk 0:00:37.3]} 39... Bxd5 {[%clk 0:00:10.5]} 40. d7
{[%clk 0:00:33.3]} 40... Qe4 {[%clk 0:00:10.3]} 41. Kf1 {[%clk 0:00:17.7]} 41...
Qg2+ {[%clk 0:00:08.8]} 42. Ke1 {[%clk 0:00:17.8]} 42... Bf3 {[%clk 0:00:08.7]}
43. Qe5 {[%clk 0:00:14.5]} 43... f6 {[%clk 0:00:07.1]} 44. Qe3 {[%clk
0:00:09.4]} 44... Qxg3+ {[%clk 0:00:07.2]} 45. Kd2 {[%clk 0:00:08.6]} 45... Qd6+
{[%clk 0:00:07.4]} 46. Ke1 {[%clk 0:00:08.6]} 46... Qg3+ {[%clk 0:00:07.2]} 47.
Kd2 {[%clk 0:00:08.2]} 47... Qd6+ {[%clk 0:00:07.3]} 48. Kc3 {[%clk 0:00:08.7]}
48... Qc7+ {[%clk 0:00:06.5]} 49. Kb2 {[%clk 0:00:08.6]} 49... Qh2+ {[%clk
0:00:05.7]} 50. Ka3 {[%clk 0:00:08.6]} 50... Qd6+ {[%clk 0:00:05.8]} 51. b4
{[%clk 0:00:09.2]} 51... Bc6 {[%clk 0:00:04.3]} 52. e7 {[%clk 0:00:08.8]} 52...
Qxd7 {[%clk 0:00:04]} 53. Qc5 {[%clk 0:00:02.2]} 53... Qe8 {[%clk 0:00:04.9]}
54. Qd6 {[%clk 0:00:02.3]} 54... Kg7 {[%clk 0:00:05.8]} 55. Qe6 {[%clk
0:00:01.5]} 55... Qd7 {[%clk 0:00:06.7]} 0-1

[Event "*** Titled Tuesday Blitz"]
[Site "Chess.com"]
[Date "2021.02.09"]
[Round "10"]
[White "Kislov_Oleg"]
[Black "esrosenberg"]
[Result "1-0"]
[WhiteElo "2496"]
[BlackElo "2101"]
[TimeControl "180+1"]
[EndTime "11:56:18 PST"]
[Termination "Kislov_Oleg won on time"]

1. e4 {[%clk 0:03:00.9]} 1... e6 {[%clk 0:03:00.2]} 2. d4 {[%clk 0:03:00.8]}
2... d5 {[%clk 0:03:00.6]} 3. Nc3 {[%clk 0:03:01.4]} 3... Bb4 {[%clk 0:03:00.8]}
4. exd5 {[%clk 0:03:01.1]} 4... exd5 {[%clk 0:03:00.7]} 5. Bd3 {[%clk
0:03:01.3]} 5... Nf6 {[%clk 0:02:57.1]} 6. Ne2 {[%clk 0:03:00.8]} 6... O-O
{[%clk 0:02:51.9]} 7. O-O {[%clk 0:03:00.4]} 7... Bg4 {[%clk 0:02:48.3]} 8. Bg5
{[%clk 0:02:54.2]} 8... c6 {[%clk 0:02:45.3]} 9. Qd2 {[%clk 0:02:52.3]} 9...
Nbd7 {[%clk 0:02:36.7]} 10. Ng3 {[%clk 0:02:45.1]} 10... Re8 {[%clk 0:02:25.6]}
11. h3 {[%clk 0:02:32]} 11... Be6 {[%clk 0:02:17.5]} 12. f4 {[%clk 0:02:30.6]}
12... Qc7 {[%clk 0:02:09.7]} 13. Rf3 {[%clk 0:02:04.8]} 13... Ne4 {[%clk
0:01:52.4]} 14. Ngxe4 {[%clk 0:01:54.9]} 14... dxe4 {[%clk 0:01:52.6]} 15. Bxe4
{[%clk 0:01:55.4]} 15... h6 {[%clk 0:01:14.2]} 16. Bxh6 {[%clk 0:01:37.8]} 16...
gxh6 {[%clk 0:01:10.4]} 17. f5 {[%clk 0:01:37.1]} 17... Nf6 {[%clk 0:00:40.2]}
18. fxe6 {[%clk 0:01:10]} 18... Nxe4 {[%clk 0:00:39.2]} 19. Qxh6 {[%clk
0:01:09.4]} 19... Rxe6 {[%clk 0:00:29.9]} 20. Qh4 {[%clk 0:00:59]} 20... Nxc3
{[%clk 0:00:19.8]} 21. bxc3 {[%clk 0:00:59.1]} 21... Bf8 {[%clk 0:00:17.3]} 22.
Raf1 {[%clk 0:00:57]} 22... Rg6 {[%clk 0:00:13.8]} 23. Rxf7 {[%clk 0:00:40.6]}
23... Qxf7 {[%clk 0:00:13.6]} 24. Rxf7 {[%clk 0:00:41.5]} 24... Kxf7 {[%clk
0:00:14.5]} 25. Qf4+ {[%clk 0:00:40.7]} 25... Rf6 {[%clk 0:00:12.5]} 26. Qc7+
{[%clk 0:00:40.6]} 26... Be7 {[%clk 0:00:13]} 27. Qxb7 {[%clk 0:00:40.8]} 27...
Rg8 {[%clk 0:00:11.3]} 28. Qxa7 {[%clk 0:00:39.1]} 28... Rfg6 {[%clk 0:00:10.4]}
29. g4 {[%clk 0:00:36.4]} 29... Kf8 {[%clk 0:00:08.5]} 30. Qd7 {[%clk
0:00:34.5]} 30... Rd6 {[%clk 0:00:07.3]} 31. Qf5+ {[%clk 0:00:33.9]} 31... Ke8
{[%clk 0:00:07.5]} 32. Qc8+ {[%clk 0:00:32.1]} 32... Kf7 {[%clk 0:00:07.7]} 33.
Qf5+ {[%clk 0:00:31.2]} 33... Ke8 {[%clk 0:00:07.4]} 34. a4 {[%clk 0:00:31.3]}
34... Rf8 {[%clk 0:00:07.2]} 35. Qe4 {[%clk 0:00:29.3]} 35... Kd7 {[%clk
0:00:06.1]} 36. a5 {[%clk 0:00:28.4]} 36... Rdf6 {[%clk 0:00:06]} 37. Qd3 {[%clk
0:00:19.6]} 37... Rf2 {[%clk 0:00:05.9]} 38. a6 {[%clk 0:00:19]} 38... Bd6
{[%clk 0:00:05.1]} 39. a7 {[%clk 0:00:17.4]} 39... Bh2+ {[%clk 0:00:05]} 40. Kh1
{[%clk 0:00:17.5]} 40... Bd6 {[%clk 0:00:03.2]} 41. Qh7+ {[%clk 0:00:16.9]}
41... R8f7 {[%clk 0:00:02.9]} 42. Qxf7+ {[%clk 0:00:15.7]} 42... Rxf7 {[%clk
0:00:03.8]} 43. a8=Q {[%clk 0:00:16.4]} 43... Rf1+ {[%clk 0:00:04]} 44. Kg2
{[%clk 0:00:16.5]} 44... Rc1 {[%clk 0:00:04]} 45. Qb7+ {[%clk 0:00:15.8]} 45...
Bc7 {[%clk 0:00:04.5]} 46. Qb3 {[%clk 0:00:15.7]} 46... Re1 {[%clk 0:00:04]} 47.
Kf3 {[%clk 0:00:14.2]} 47... Re7 {[%clk 0:00:04.9]} 48. Qc4 {[%clk 0:00:13.7]}
48... Bd6 {[%clk 0:00:05]} 49. Qd3 {[%clk 0:00:12.3]} 49... Rf7+ {[%clk
0:00:04.9]} 50. Kg2 {[%clk 0:00:11.9]} 50... Re7 {[%clk 0:00:04]} 51. Qf5+
{[%clk 0:00:11.9]} 51... Kc7 {[%clk 0:00:04.5]} 52. c4 {[%clk 0:00:11.4]} 52...
Re2+ {[%clk 0:00:04.4]} 53. Kf3 {[%clk 0:00:11.7]} 53... Re1 {[%clk 0:00:03.6]}
54. Kf2 {[%clk 0:00:11.2]} 54... Rh1 {[%clk 0:00:03]} 55. g5 {[%clk 0:00:08.8]}
55... Rh2+ {[%clk 0:00:02.6]} 56. Ke3 {[%clk 0:00:07]} 1-0

[Event "*** Titled Tuesday Blitz"]
[Site "Chess.com"]
[Date "2021.02.09"]
[Round "10"]
[White "Ghost_Pepper"]
[Black "kidagent"]
[Result "0-1"]
[WhiteElo "2386"]
[BlackElo "2295"]
[TimeControl "180+1"]
[EndTime "11:56:21 PST"]
[Termination "kidagent won by checkmate"]

1. e4 {[%clk 0:03:00.9]} 1... c5 {[%clk 0:02:58.8]} 2. Nf3 {[%clk 0:02:59.6]}
2... d6 {[%clk 0:02:59.1]} 3. d4 {[%clk 0:02:55.8]} 3... cxd4 {[%clk 0:03:00]}
4. Nxd4 {[%clk 0:02:56.3]} 4... Nf6 {[%clk 0:03:00.2]} 5. Nc3 {[%clk 0:02:57]}
5... a6 {[%clk 0:03:00.5]} 6. h3 {[%clk 0:02:57.6]} 6... e5 {[%clk 0:02:59.7]}
7. Nde2 {[%clk 0:02:57.2]} 7... b5 {[%clk 0:02:59.9]} 8. g4 {[%clk 0:02:56.7]}
8... Bb7 {[%clk 0:02:49.4]} 9. Bg2 {[%clk 0:02:56.8]} 9... b4 {[%clk 0:02:47.3]}
10. Nd5 {[%clk 0:02:51.9]} 10... Nxd5 {[%clk 0:02:47.2]} 11. exd5 {[%clk
0:02:52.8]} 11... Be7 {[%clk 0:02:46.9]} 12. O-O {[%clk 0:02:51]} 12... O-O
{[%clk 0:02:46.5]} 13. a3 {[%clk 0:02:51.1]} 13... a5 {[%clk 0:02:36.1]} 14.
axb4 {[%clk 0:02:35.5]} 14... axb4 {[%clk 0:02:37]} 15. Rxa8 {[%clk 0:02:35.3]}
15... Bxa8 {[%clk 0:02:37.9]} 16. Kh2 {[%clk 0:02:22.4]} 16... f5 {[%clk
0:02:32.1]} 17. gxf5 {[%clk 0:02:17.5]} 17... Rxf5 {[%clk 0:02:31.3]} 18. Ng3
{[%clk 0:02:16.7]} 18... Rf8 {[%clk 0:02:27.8]} 19. Qg4 {[%clk 0:02:15]} 19...
Nd7 {[%clk 0:02:16.5]} 20. Qxb4 {[%clk 0:01:47.4]} 20... Nf6 {[%clk 0:02:07.6]}
21. Be3 {[%clk 0:01:46.5]} 21... Qc7 {[%clk 0:02:03.5]} 22. c4 {[%clk
0:01:45.4]} 22... g6 {[%clk 0:01:53.4]} 23. Qc3 {[%clk 0:01:38.8]} 23... Rb8
{[%clk 0:01:49]} 24. f4 {[%clk 0:01:13.7]} 24... Nd7 {[%clk 0:01:30.2]} 25. f5
{[%clk 0:01:11.5]} 25... Bf6 {[%clk 0:01:23.1]} 26. fxg6 {[%clk 0:01:06]} 26...
hxg6 {[%clk 0:01:24]} 27. Ne4 {[%clk 0:01:05.5]} 27... Bg7 {[%clk 0:01:24.1]}
28. Bg1 {[%clk 0:00:28.1]} 28... Bb7 {[%clk 0:01:06.2]} 29. Qg3 {[%clk
0:00:24.3]} 29... Nf8 {[%clk 0:01:02.9]} 30. b3 {[%clk 0:00:22.2]} 30... Bc8
{[%clk 0:01:01.8]} 31. Ng5 {[%clk 0:00:18.5]} 31... Bf5 {[%clk 0:00:53.2]} 32.
Be4 {[%clk 0:00:18.1]} 32... Qd7 {[%clk 0:00:48]} 33. Bxf5 {[%clk 0:00:17.7]}
33... gxf5 {[%clk 0:00:47.6]} 34. Qh4 {[%clk 0:00:18.1]} 34... Bf6 {[%clk
0:00:41.5]} 35. Qh6 {[%clk 0:00:15.9]} 35... Qg7 {[%clk 0:00:35]} 36. Qxg7+
{[%clk 0:00:11.7]} 36... Kxg7 {[%clk 0:00:35.9]} 37. Ne6+ {[%clk 0:00:09.9]}
37... Nxe6 {[%clk 0:00:34.9]} 38. dxe6 {[%clk 0:00:10.8]} 38... Rxb3 {[%clk
0:00:19.8]} 39. Rxf5 {[%clk 0:00:10]} 39... Rc3 {[%clk 0:00:19.1]} 40. c5 {[%clk
0:00:10.5]} 40... dxc5 {[%clk 0:00:18]} 41. Rf2 {[%clk 0:00:10.5]} 41... Bg5
{[%clk 0:00:15.8]} 42. Rg2 {[%clk 0:00:10.4]} 42... Kf6 {[%clk 0:00:15]} 43. Kh1
{[%clk 0:00:09.1]} 43... Bf4 {[%clk 0:00:14.9]} 44. Ra2 {[%clk 0:00:05.5]} 44...
Rxh3+ {[%clk 0:00:14.6]} 45. Kg2 {[%clk 0:00:04.6]} 45... Rg3+ {[%clk
0:00:14.7]} 46. Kf2 {[%clk 0:00:05.2]} 46... Kxe6 {[%clk 0:00:14.7]} 47. Ra6+
{[%clk 0:00:05.3]} 47... Kf5 {[%clk 0:00:14.9]} 48. Rc6 {[%clk 0:00:04.9]} 48...
Rc3 {[%clk 0:00:15.2]} 49. Kf1 {[%clk 0:00:05.3]} 49... Rc1+ {[%clk 0:00:15.1]}
50. Kg2 {[%clk 0:00:05.5]} 50... c4 {[%clk 0:00:15.5]} 51. Bc5 {[%clk
0:00:05.6]} 51... c3 {[%clk 0:00:15.5]} 52. Ba3 {[%clk 0:00:05.1]} 52... Rc2+
{[%clk 0:00:14]} 53. Kf3 {[%clk 0:00:05.5]} 53... Ra2 {[%clk 0:00:13.5]} 54. Bb4
{[%clk 0:00:05.2]} 54... c2 {[%clk 0:00:13.3]} 55. Rc5 {[%clk 0:00:04.4]} 55...
c1=Q {[%clk 0:00:13]} 56. Rxc1 {[%clk 0:00:03.7]} 56... Bxc1 {[%clk 0:00:13.9]}
57. Bd2 {[%clk 0:00:03.5]} 57... Bxd2 {[%clk 0:00:13]} 58. Kg3 {[%clk
0:00:04.1]} 58... Ra3+ {[%clk 0:00:12.7]} 59. Kf2 {[%clk 0:00:04.3]} 59... Bf4
{[%clk 0:00:12.5]} 60. Ke2 {[%clk 0:00:05.2]} 60... Ke4 {[%clk 0:00:12.8]} 61.
Kf2 {[%clk 0:00:05.5]} 61... Ra2+ {[%clk 0:00:13.1]} 62. Kf1 {[%clk 0:00:05.5]}
62... Kf3 {[%clk 0:00:12.9]} 63. Kg1 {[%clk 0:00:06.4]} 63... Ra1# {[%clk
0:00:11.4]} 0-1

[Event "*** Titled Tuesday Blitz"]
[Site "Chess.com"]
[Date "2021.02.09"]
[Round "10"]
[White "mikolka1985"]
[Black "FlySooHigh"]
[Result "1/2-1/2"]
[WhiteElo "2603"]
[BlackElo "2596"]
[TimeControl "180+1"]
[EndTime "11:56:22 PST"]
[Termination "Game drawn - insufficient material"]

1. d4 {[%clk 0:03:00.9]} 1... Nf6 {[%clk 0:02:59.6]} 2. c4 {[%clk 0:02:51.6]}
2... c5 {[%clk 0:03:00.1]} 3. d5 {[%clk 0:02:51]} 3... b5 {[%clk 0:03:00.6]} 4.
cxb5 {[%clk 0:02:50.5]} 4... a6 {[%clk 0:03:01.1]} 5. bxa6 {[%clk 0:02:50.3]}
5... g6 {[%clk 0:03:01.5]} 6. Nc3 {[%clk 0:02:49.8]} 6... Bg7 {[%clk 0:03:02]}
7. e4 {[%clk 0:02:49.4]} 7... O-O {[%clk 0:03:02.7]} 8. a7 {[%clk 0:02:48.3]}
8... Rxa7 {[%clk 0:02:58.3]} 9. Nf3 {[%clk 0:02:48.2]} 9... Qa5 {[%clk
0:02:57.5]} 10. Bd2 {[%clk 0:02:47]} 10... Ra8 {[%clk 0:02:48.9]} 11. Be2 {[%clk
0:02:43.7]} 11... Ba6 {[%clk 0:02:47.6]} 12. O-O {[%clk 0:02:17.7]} 12... d6
{[%clk 0:02:46.4]} 13. a4 {[%clk 0:02:16.7]} 13... Bxe2 {[%clk 0:02:35.9]} 14.
Qxe2 {[%clk 0:02:16.1]} 14... Qa6 {[%clk 0:02:33.1]} 15. Nb5 {[%clk 0:02:15.2]}
15... Nbd7 {[%clk 0:02:33.5]} 16. Bc3 {[%clk 0:02:11.7]} 16... Rfb8 {[%clk
0:02:29.2]} 17. Nd2 {[%clk 0:02:08.6]} 17... Ne8 {[%clk 0:02:16.8]} 18. Bxg7
{[%clk 0:01:50.4]} 18... Kxg7 {[%clk 0:02:17.7]} 19. Rfe1 {[%clk 0:01:49.2]}
19... Qb7 {[%clk 0:02:03.2]} 20. Nc4 {[%clk 0:01:31]} 20... Nc7 {[%clk 0:02:03]}
21. Nxc7 {[%clk 0:01:29.2]} 21... Qxc7 {[%clk 0:02:03.9]} 22. a5 {[%clk
0:01:28.6]} 22... Rb4 {[%clk 0:02:00.5]} 23. h3 {[%clk 0:01:27.4]} 23... Qb7
{[%clk 0:01:57.1]} 24. Qc2 {[%clk 0:01:25.8]} 24... f6 {[%clk 0:01:52.2]} 25.
Ra3 {[%clk 0:01:24.2]} 25... Qb5 {[%clk 0:01:40.1]} 26. Rc1 {[%clk 0:01:21.5]}
26... Ne5 {[%clk 0:01:35.7]} 27. b3 {[%clk 0:01:16.6]} 27... Ra6 {[%clk
0:01:19.2]} 28. f4 {[%clk 0:01:10.6]} 28... Nxc4 {[%clk 0:01:14.5]} 29. bxc4
{[%clk 0:01:10]} 29... Qb8 {[%clk 0:01:10.5]} 30. Qc3 {[%clk 0:01:08.2]} 30...
Rb2 {[%clk 0:01:03.6]} 31. e5 {[%clk 0:01:05.1]} 31... Qb4 {[%clk 0:00:49.1]}
32. exf6+ {[%clk 0:01:02.9]} 32... exf6 {[%clk 0:00:50]} 33. f5 {[%clk
0:00:39.4]} 33... Qxc3 {[%clk 0:00:44.9]} 34. Rcxc3 {[%clk 0:00:38.5]} 34...
gxf5 {[%clk 0:00:41.6]} 35. Re3 {[%clk 0:00:37.3]} 35... Kf7 {[%clk 0:00:36.6]}
36. Rf3 {[%clk 0:00:32.8]} 36... Rb4 {[%clk 0:00:32.7]} 37. Rxf5 {[%clk
0:00:32]} 37... Rxc4 {[%clk 0:00:32.5]} 38. Raf3 {[%clk 0:00:32.7]} 38... Rxa5
{[%clk 0:00:27.8]} 39. Rxf6+ {[%clk 0:00:33.1]} 39... Kg7 {[%clk 0:00:28.4]} 40.
Rf7+ {[%clk 0:00:31.9]} 40... Kg6 {[%clk 0:00:28.1]} 41. R3f6+ {[%clk
0:00:31.4]} 41... Kg5 {[%clk 0:00:28.2]} 42. Rf5+ {[%clk 0:00:30.5]} 42... Kg6
{[%clk 0:00:27.6]} 43. R7f6+ {[%clk 0:00:30.3]} 43... Kg7 {[%clk 0:00:27.9]} 44.
Rxd6 {[%clk 0:00:30.8]} 44... Rd4 {[%clk 0:00:25.4]} 45. h4 {[%clk 0:00:29.9]}
45... Rxh4 {[%clk 0:00:23.6]} 46. Rd7+ {[%clk 0:00:28]} 46... Kg6 {[%clk
0:00:23.4]} 47. Rdf7 {[%clk 0:00:28.2]} 47... Ra2 {[%clk 0:00:17.8]} 48. R5f6+
{[%clk 0:00:22.9]} 48... Kg5 {[%clk 0:00:17.2]} 49. Rf3 {[%clk 0:00:20.7]} 49...
Ra1+ {[%clk 0:00:10]} 50. Kf2 {[%clk 0:00:20.4]} 50... Ra2+ {[%clk 0:00:10.6]}
51. Kg1 {[%clk 0:00:19.3]} 51... Ra1+ {[%clk 0:00:10.9]} 52. Kf2 {[%clk
0:00:19.5]} 52... Ra2+ {[%clk 0:00:11.5]} 53. Ke3 {[%clk 0:00:18.2]} 53... Ra3+
{[%clk 0:00:11.7]} 54. Kd2 {[%clk 0:00:17.1]} 54... Rd4+ {[%clk 0:00:10.8]} 55.
Kc2 {[%clk 0:00:15.9]} 55... Rxf3 {[%clk 0:00:11]} 56. gxf3 {[%clk 0:00:15.6]}
56... Rxd5 {[%clk 0:00:11.5]} 57. Rxh7 {[%clk 0:00:16.1]} 57... Kf4 {[%clk
0:00:10.9]} 58. Rf7+ {[%clk 0:00:15.7]} 58... Ke3 {[%clk 0:00:10.3]} 59. Kc3
{[%clk 0:00:16.6]} 59... Rd1 {[%clk 0:00:08.3]} 60. Kc4 {[%clk 0:00:16.1]} 60...
Rf1 {[%clk 0:00:08.4]} 61. Re7+ {[%clk 0:00:13.9]} 61... Kxf3 {[%clk 0:00:08.2]}
62. Rf7+ {[%clk 0:00:13.9]} 62... Kg2 {[%clk 0:00:08.8]} 63. Rxf1 {[%clk
0:00:14.2]} 63... Kxf1 {[%clk 0:00:09.7]} 64. Kxc5 {[%clk 0:00:15.1]} 1/2-1/2

[Event "*** Titled Tuesday Blitz"]
[Site "Chess.com"]
[Date "2021.02.09"]
[Round "10"]
[White "J36225"]
[Black "AniJak"]
[Result "1-0"]
[WhiteElo "2476"]
[BlackElo "2326"]
[TimeControl "180+1"]
[EndTime "11:56:23 PST"]
[Termination "J36225 won on time"]

1. e4 {[%clk 0:03:00.9]} 1... c5 {[%clk 0:02:59.8]} 2. Nf3 {[%clk 0:03:00.5]}
2... e6 {[%clk 0:03:00.1]} 3. d4 {[%clk 0:02:58.5]} 3... cxd4 {[%clk 0:03:00.1]}
4. Nxd4 {[%clk 0:02:59.4]} 4... a6 {[%clk 0:03:00.6]} 5. c4 {[%clk 0:02:59.2]}
5... Qc7 {[%clk 0:02:59.3]} 6. Nc3 {[%clk 0:02:58.8]} 6... Nf6 {[%clk
0:02:56.7]} 7. Qd3 {[%clk 0:02:58.2]} 7... Nc6 {[%clk 0:02:56.2]} 8. Nxc6 {[%clk
0:02:55.8]} 8... dxc6 {[%clk 0:02:56.4]} 9. f3 {[%clk 0:02:50.2]} 9... e5 {[%clk
0:02:56.4]} 10. Be3 {[%clk 0:02:48.7]} 10... Be6 {[%clk 0:02:56.3]} 11. O-O-O
{[%clk 0:02:48.3]} 11... Be7 {[%clk 0:02:54.3]} 12. Kb1 {[%clk 0:02:41.8]} 12...
b5 {[%clk 0:02:46.5]} 13. Qc2 {[%clk 0:02:25.5]} 13... bxc4 {[%clk 0:02:33.6]}
14. Qa4 {[%clk 0:02:21.4]} 14... O-O {[%clk 0:02:29.5]} 15. Bxc4 {[%clk
0:02:20.4]} 15... Bxc4 {[%clk 0:02:27.3]} 16. Qxc4 {[%clk 0:02:21.3]} 16... Rab8
{[%clk 0:02:23.7]} 17. Rd2 {[%clk 0:02:20.2]} 17... Bb4 {[%clk 0:02:17]} 18.
Rhd1 {[%clk 0:02:14.9]} 18... Qa5 {[%clk 0:02:14.9]} 19. Ka1 {[%clk 0:02:03.9]}
19... Be7 {[%clk 0:02:08.3]} 20. b3 {[%clk 0:01:57.1]} 20... Rb4 {[%clk
0:02:02.9]} 21. Qd3 {[%clk 0:01:53]} 21... Rxb3 {[%clk 0:02:01.9]} 22. Rc2
{[%clk 0:01:45.8]} 22... Rd8 {[%clk 0:01:54.1]} 23. Qc4 {[%clk 0:01:39.5]} 23...
Rxd1+ {[%clk 0:01:20.1]} 24. Nxd1 {[%clk 0:01:38.5]} 24... Rb8 {[%clk
0:01:16.1]} 25. Qxc6 {[%clk 0:01:21.9]} 25... h6 {[%clk 0:01:15.9]} 26. Qc3
{[%clk 0:01:20.8]} 26... Bb4 {[%clk 0:01:03.9]} 27. Qc7 {[%clk 0:01:08.8]} 27...
Qxc7 {[%clk 0:00:56.2]} 28. Rxc7 {[%clk 0:01:08.3]} 28... Rd8 {[%clk 0:00:56]}
29. Nb2 {[%clk 0:01:01.3]} 29... a5 {[%clk 0:00:55.6]} 30. Kb1 {[%clk
0:00:59.5]} 30... Ne8 {[%clk 0:00:53.6]} 31. Rc1 {[%clk 0:00:55]} 31... Ba3
{[%clk 0:00:49.3]} 32. Rd1 {[%clk 0:00:49.8]} 32... Rb8 {[%clk 0:00:47.5]} 33.
Bc1 {[%clk 0:00:44.9]} 33... Nd6 {[%clk 0:00:45.3]} 34. Kc2 {[%clk 0:00:42.2]}
34... Rc8+ {[%clk 0:00:43.1]} 35. Kb3 {[%clk 0:00:37.9]} 35... Bb4 {[%clk
0:00:28.3]} 36. Bd2 {[%clk 0:00:31.4]} 36... Bxd2 {[%clk 0:00:21.5]} 37. Rxd2
{[%clk 0:00:31.1]} 37... Nb5 {[%clk 0:00:22.4]} 38. Nc4 {[%clk 0:00:18.8]} 38...
Nd4+ {[%clk 0:00:21.4]} 39. Kc3 {[%clk 0:00:18.9]} 39... f6 {[%clk 0:00:19.2]}
40. Kd3 {[%clk 0:00:16.6]} 40... a4 {[%clk 0:00:17.7]} 41. Rb2 {[%clk
0:00:16.3]} 41... Rd8 {[%clk 0:00:16.8]} 42. Ke3 {[%clk 0:00:15.4]} 42... Rc8
{[%clk 0:00:16.4]} 43. Nd6 {[%clk 0:00:15.3]} 43... Rc3+ {[%clk 0:00:16]} 44.
Kd2 {[%clk 0:00:12.8]} 44... Ra3 {[%clk 0:00:16.2]} 45. Nc4 {[%clk 0:00:11.2]}
45... Nxf3+ {[%clk 0:00:11.5]} 46. gxf3 {[%clk 0:00:08.1]} 46... Rxf3 {[%clk
0:00:12.4]} 47. Ne3 {[%clk 0:00:07.8]} 47... Rf2+ {[%clk 0:00:09.5]} 48. Kc3
{[%clk 0:00:08]} 48... Rf4 {[%clk 0:00:08.3]} 49. Kd3 {[%clk 0:00:07.5]} 49...
Rh4 {[%clk 0:00:07.7]} 50. Nf5 {[%clk 0:00:05.7]} 50... Rh3+ {[%clk 0:00:07.4]}
51. Kc4 {[%clk 0:00:05.3]} 51... g6 {[%clk 0:00:07.6]} 52. Rb8+ {[%clk
0:00:04.9]} 52... Kf7 {[%clk 0:00:07.6]} 53. Rb7+ {[%clk 0:00:04.9]} 53... Kf8
{[%clk 0:00:05.8]} 54. Nd6 {[%clk 0:00:04.3]} 54... Rxh2 {[%clk 0:00:04]} 55.
Kd5 {[%clk 0:00:04.4]} 1-0